bitfinex/quotes_ETHUSD_20251217
["timestamp","ask_amount","ask_price","bid_price","bid_amount"]
[1765992865543,2.9056,2864.0,2863.3,0.02463661]
[1765992865738,2.9056,2864.0,2863.6,3.49209312]
[1765992865971,0.562,2863.9,2863.6,3.49209312]
[1765992866178,0.562,2864.0,2863.6,3.49207891]
[1765992866494,2.3726,2864.5,2863.7,0.02463661]
[1765992866792,5.2782,2864.8,2863.7,0.48901684]
[1765992867088,5.8402,2865.3,2864.2,5.4237]
[1765992867293,0.562,2865.2,2864.2,5.4237]
[1765992867490,0.562,2865.2,2864.4,2.3589]
[1765992867659,0.562,2865.3,2864.4,2.3589]
[1765992868165,0.562,2865.4,2864.8,0.02463661]
[1765992868688,9.09058291,2866.7,2864.8,0.02463661]
[1765992868912,9.09058291,2866.7,2864.6,3.08943661]
[1765992868913,5.2782,2866.1,2864.6,6.58021379]
[1765992869050,2.3726,2865.6,2864.8,0.02463661]
[1765992869253,5.2782,2865.4,2864.8,0.02463661]
[1765992869682,5.2782,2865.4,2864.4,6.33895201]
[1765992869683,5.2782,2865.4,2864.4,2.84791684]
[1765992869986,5.2782,2865.4,2864.6,0.02463661]
[1765992870350,5.2782,2865.3,2864.6,0.02463661]
[1765992871848,2.9056,2865.2,2864.4,0.02463661]
[1765992872048,0.562,2865.1,2864.4,0.02463661]
[1765992872248,0.562,2865.1,2864.4,3.51570221]
[1765992872549,0.562,2865.1,2864.4,3.51571412]
[1765992872957,2.9056,2865.5,2864.6,3.51552539]
[1765992873156,5.8402,2865.4,2864.6,0.02463661]
[1765992873362,0.562,2865.4,2864.4,0.02463661]
[1765992873669,0.562,2865.4,2864.6,3.51550138]
[1765992873873,0.562,2865.4,2864.6,4.76099484]
[1765992874272,2.9056,2865.7,2864.8,0.02463661]
[1765992874588,0.562,2865.8,2865.1,0.02463661]
[1765992875884,0.563,2865.8,2865.2,0.02463661]
[1765992876270,5.2782,2865.7,2865.2,0.02463661]
[1765992876465,3.4676,2865.7,2865.2,0.02463661]
[1765992877211,3.4676,2865.7,2865.2,3.51478521]
[1765992877367,3.4676,2865.7,2865.2,0.02463661]
[1765992877797,3.4676,2865.7,2865.2,3.51472816]
[1765992878105,0.001,2865.8,2865.2,0.02463661]
[1765992878797,0.001,2865.8,2865.2,3.51478123]
[1765992879565,0.001,2865.8,2865.2,4.21776288]
[1765992879895,0.001,2865.8,2865.2,4.21767382]
[1765992880088,0.001,2865.8,2865.4,0.02463661]
[1765992880292,0.562,2865.9,2865.4,0.02463661]
[1765992880460,0.562,2866.3,2865.6,0.02463661]
[1765992881366,0.562,2866.3,2865.6,3.51429481]
[1765992881801,3.48748308,2867.4,2865.6,3.51429481]
[1765992881802,2.9445,2867.2,2866.2,0.02463661]
[1765992882092,5.3137,2867.2,2866.2,0.02463661]
[1765992882292,5.3137,2867.2,2866.2,3.13103661]
[1765992882492,0.562,2867.4,2866.2,0.02463661]
[1765992882806,5.3137,2867.3,2866.3,5.3783]
[1765992883094,2.9445,2867.3,2866.3,5.3783]
[1765992883291,5.3137,2867.1,2866.4,0.562]
[1765992884594,1.14957,2867.4,2866.4,0.562]
[1765992884898,5.3137,2867.3,2866.3,0.562]
[1765992885084,2.3692,2867.0,2866.3,0.562]
[1765992885285,5.3137,2867.0,2866.3,0.562]
[1765992885977,0.001,2867.2,2866.2,0.02463661]
[1765992886378,0.001,2867.2,2866.0,0.02463661]
[1765992886379,5.3137,2867.1,2866.0,0.02463661]
[1765992886700,0.46538023,2867.2,2866.0,0.02463661]
[1765992886701,1.13990802,2867.0,2866.0,0.02463661]
[1765992886901,0.562,2867.0,2866.0,0.02463661]
[1765992887071,5.3137,2866.9,2866.0,0.02463661]
[1765992887398,5.3137,2866.9,2866.0,3.51378442]
[1765992887797,5.3137,2866.9,2865.9,3.95362878]
[1765992888188,5.3137,2866.9,2865.7,0.46438023]
[1765992888390,5.3137,2866.7,2865.8,0.02463661]
[1765992888705,5.3137,2866.7,2865.8,3.51401023]
[1765992889197,0.58757,2866.8,2865.8,3.51401023]
[1765992889496,2.9445,2866.6,2865.6,0.02463661]
[1765992889703,0.561,2866.5,2865.4,0.58563661]
[1765992889891,5.3137,2866.3,2865.4,4.07554924]
[1765992890211,5.3137,2866.3,2865.6,0.02463661]
[1765992890877,5.3137,2866.3,2865.6,3.51428825]
[1765992891075,5.3137,2866.3,2865.6,0.02463661]
[1765992891487,0.561,2866.5,2865.6,0.02463661]
[1765992891688,0.561,2866.5,2865.5,0.46438023]
[1765992891885,5.3137,2866.4,2865.4,0.02463661]
[1765992892205,0.58747,2866.3,2865.4,0.46438023]
[1765992892397,0.561,2866.5,2865.4,0.02463661]
[1765992892600,5.3137,2866.4,2865.4,0.48901684]
[1765992892915,0.561,2866.5,2865.4,0.02463661]
[1765992893384,5.3137,2866.0,2865.4,0.02463661]
[1765992893810,5.3137,2866.0,2865.2,0.02463661]
[1765992894011,5.3137,2865.9,2865.2,0.46438023]
[1765992894714,0.53137,2866.0,2864.3,5.3783]
[1765992894880,0.561,2865.9,2864.6,0.02463661]
[1765992895082,0.561,2865.9,2864.6,0.48901684]
[1765992895281,5.3137,2865.8,2864.6,0.02463661]
[1765992895500,0.561,2865.9,2864.6,0.02463661]
[1765992896108,0.86988423,2865.8,2864.4,0.02463661]
[1765992896308,5.3137,2865.7,2864.4,0.02463661]
[1765992896611,0.61835842,2865.6,2864.4,0.02463661]
[1765992896811,5.3137,2865.4,2864.4,0.02463661]
[1765992896984,0.561,2865.5,2864.4,0.02463661]
[1765992897314,0.561,2865.5,2864.4,3.51570211]
[1765992897684,0.561,2865.5,2864.4,0.02463661]
[1765992898010,5.3137,2865.4,2864.4,3.51573942]
[1765992898214,0.561,2865.5,2864.4,4.80071086]
[1765992898416,5.3137,2865.4,2864.4,4.80071086]
[1765992898717,0.561,2865.5,2864.4,1.23497144]
[1765992898882,5.3137,2865.4,2864.3,0.02463661]
[1765992899209,0.561,2865.5,2864.4,3.4910614]
[1765992899413,5.3137,2865.4,2864.3,3.98020686]
[1765992899712,5.3137,2865.4,2864.4,3.49111458]
[1765992899901,0.561,2865.5,2864.3,0.48901684]
[1765992900211,5.3137,2865.4,2864.3,3.98025763]
[1765992900414,0.58747,2865.4,2864.4,1.34109238]
[1765992900730,0.001,2866.3,2864.7,0.02463661]
[1765992900731,0.46438023,2866.1,2864.7,0.02463661]
[1765992901013,0.46438023,2865.7,2864.9,5.40293661]
[1765992901383,0.46438023,2865.8,2864.8,0.561]
[1765992901719,2.9445,2865.2,2864.3,0.58563661]
[1765992901905,2.9445,2865.2,2863.9,5.40493661]
[1765992901906,2.9445,2864.6,2863.9,0.02663661]
[1765992902415,2.3692,2864.7,2864.0,0.46438023]
[1765992902625,2.9445,2864.9,2864.1,0.02463661]
[1765992902794,0.561,2865.2,2864.5,0.02463661]
[1765992902999,0.561,2865.6,2864.5,0.02463661]
[1765992903206,0.46438023,2865.4,2864.5,0.02463661]
[1765992903514,0.561,2865.6,2864.4,0.561]
[1765992903683,0.561,2865.6,2864.4,8.83789099]
[1765992903884,0.46438023,2865.4,2864.7,0.02463661]
[1765992904096,0.561,2865.6,2864.7,5.40293661]
[1765992904415,0.46438023,2865.5,2864.8,0.58563661]
[1765992904620,5.3137,2865.5,2864.8,0.58563661]
[1765992904817,5.90117,2865.5,2864.8,0.58563661]
[1765992904985,0.561,2865.6,2864.8,0.58563661]
[1765992905185,0.561,2865.6,2864.9,0.02463661]
[1765992905407,5.3137,2866.0,2865.2,0.02463661]
[1765992905628,5.3137,2866.0,2865.1,5.40293661]
[1765992905923,0.58747,2866.0,2865.1,0.02463661]
[1765992906126,0.561,2866.2,2865.1,0.02463661]
[1765992906325,5.3137,2865.9,2865.1,0.02463661]
[1765992906618,0.561,2866.2,2865.3,0.02463661]
[1765992906913,5.3137,2866.2,2865.4,0.561]
[1765992907522,0.001,2866.3,2865.4,0.561]
[1765992907685,0.001,2866.3,2865.5,5.9393]
[1765992907884,0.001,2866.3,2865.6,0.02463661]
[1765992908089,0.001,2866.3,2865.3,0.02463661]
[1765992908416,0.561,2866.2,2864.8,5.3783]
[1765992908627,0.561,2866.2,2864.9,1.05001684]
[1765992908790,0.46438023,2866.1,2864.9,1.05001684]
[1765992908994,2.2218,2865.9,2864.9,1.05001684]
[1765992909189,0.26861802,2865.9,2864.9,0.46438023]
[1765992909388,2.2218,2865.6,2864.8,5.9393]
[1765992909619,2.8772,2865.7,2864.8,0.561]
[1765992909821,5.099,2865.5,2864.8,4.05162619]
[1765992910003,5.099,2865.5,2864.7,0.48901684]
[1765992910004,5.099,2865.5,2864.7,3.97973745]
[1765992910330,5.099,2865.5,2864.7,4.07631825]
[1765992910620,5.099,2865.5,2864.8,3.49059157]
[1765992910824,5.099,2865.5,2865.0,0.002]
[1765992911021,0.405504,2866.0,2865.0,0.002]
[1765992911603,2.9299,2866.0,2865.0,0.002]
[1765992911922,0.46438023,2866.0,2865.3,0.02463661]
[1765992912143,1.08108825,2866.0,2865.3,0.02463661]
[1765992912371,0.61670802,2866.0,2865.1,5.13833661]
[1765992912564,2.2118,2865.8,2865.0,0.002]
[1765992912716,2.2118,2865.6,2865.0,0.002]
[1765992913056,5.1417,2865.6,2865.0,0.002]
[1765992913723,0.001,2866.3,2865.1,0.02463661]
[1765992914050,5.1417,2866.1,2865.3,0.02463661]
[1765992914345,0.001,2866.3,2865.7,0.02463661]
[1765992914642,5.1427,2866.3,2865.7,0.02463661]
[1765992915548,0.001,2866.3,2865.7,0.02463661]
[1765992915749,0.001,2866.3,2865.9,5.1137]
[1765992916445,0.001,2866.3,2865.7,3.51413656]
[1765992916626,0.001,2866.3,2865.8,3.48941486]
[1765992916943,0.001,2866.3,2865.9,5.1137]
[1765992917148,0.001,2866.3,2866.0,5.1137]
[1765992917648,0.001,2866.3,2865.8,9.16412521]
[1765992918218,0.001,2866.3,2865.8,0.561]
[1765992918428,0.001,2866.3,2865.8,9.16409277]
[1765992918824,0.001,2866.3,2865.8,9.52087894]
[1765992919459,5.1427,2867.2,2866.1,0.02463661]
[1765992919631,5.1427,2867.2,2865.8,3.84617894]
[1765992919632,0.001,2867.2,2865.8,3.84617894]
[1765992920042,2.9299,2867.0,2865.9,5.1137]
[1765992920225,5.43479,2867.0,2866.0,9.84771304]
[1765992920424,5.43479,2867.0,2866.1,0.561]
[1765992920626,5.1417,2867.0,2866.2,2.9475]
[1765992920939,5.1417,2867.0,2866.2,5.1137]
[1765992921136,0.001,2867.2,2866.1,0.58563661]
[1765992921333,5.1417,2866.9,2866.1,0.58563661]
[1765992921737,0.46438023,2867.1,2866.2,5.1137]
[1765992922043,0.001,2867.2,2866.8,5.1137]
[1765992922242,0.001,2867.2,2866.8,8.60186184]
[1765992922454,0.001,2867.5,2866.9,5.1137]
[1765992922954,0.001,2867.5,2866.7,0.58563661]
[1765992923254,0.001,2867.5,2866.7,4.80581327]
[1765992923431,0.001,2867.5,2866.9,0.02463661]
[1765992923759,0.001,2867.5,2866.9,5.13833661]
[1765992924166,2.9299,2867.4,2866.5,0.02463661]
[1765992924459,2.9299,2866.9,2866.2,0.46438023]
[1765992925433,2.9299,2866.9,2866.2,1.02538023]
[1765992925633,2.9299,2866.9,2866.1,5.13833661]
[1765992925828,2.9299,2866.9,2866.2,0.561]
[1765992926254,2.9299,2866.9,2866.2,4.04993812]
[1765992926440,0.51417,2866.8,2865.8,0.38142278]
[1765992926646,2.9299,2866.8,2865.9,4.05028032]
[1765992926934,5.1417,2866.7,2865.9,4.05028032]
[1765992927144,0.561,2867.0,2865.9,4.05028032]
[1765992927351,5.1417,2866.7,2865.9,3.48928032]
[1765992927559,0.561,2866.6,2865.1,5.13833661]
[1765992927853,5.1417,2866.2,2865.4,0.46438023]
[1765992928243,5.1417,2866.2,2865.3,3.97902313]
[1765992928429,0.561,2866.6,2865.3,13.89962185]
[1765992928630,5.1417,2866.4,2865.3,13.89962185]
[1765992928830,5.1417,2866.2,2865.3,6.91957962]
[1765992929047,2.2118,2866.4,2865.3,9.09270562]
[1765992929260,5.1417,2866.3,2865.3,9.09270562]
[1765992929480,2.2118,2866.0,2865.0,0.002]
[1765992929785,2.9299,2866.1,2865.2,3.49009274]
[1765992929786,0.561,2865.9,2865.2,3.49009274]
[1765992930060,5.7027,2865.9,2865.3,0.35147294]
[1765992930242,5.7027,2865.9,2865.0,0.002]
[1765992930243,0.561,2865.9,2865.0,0.002]
[1765992930446,2.9299,2865.7,2865.0,0.002]
[1765992930767,2.2118,2865.8,2865.0,0.46638023]
[1765992931659,2.9299,2865.7,2865.0,0.002]
[1765992931960,2.9299,2865.7,2865.0,0.96783203]
[1765992932352,2.9299,2865.7,2865.1,3.49027957]
[1765992932572,2.7728,2865.9,2865.1,3.51491618]
[1765992932776,0.561,2865.9,2865.2,5.1137]
[1765992932979,0.561,2865.9,2865.2,6.07334482]
[1765992933553,2.9299,2866.6,2865.3,5.1137]
[1765992933864,0.86988423,2867.0,2865.3,5.1137]
[1765992933865,0.561,2866.5,2865.3,5.1137]
[1765992934053,2.2118,2866.2,2865.3,5.1137]
[1765992934258,5.1417,2866.2,2865.3,5.1137]
[1765992934569,5.71197,2866.2,2865.3,5.13833661]
[1765992934747,5.1417,2866.1,2865.3,8.62835616]
[1765992934941,5.1417,2866.1,2865.3,5.13833661]
[1765992935142,5.1417,2866.1,2865.3,8.62836235]
[1765992935357,5.1417,2866.1,2865.3,9.18936235]
[1765992935568,0.46438023,2866.5,2865.6,5.13833661]
[1765992935866,0.46438023,2866.4,2865.6,5.13833661]
[1765992936834,0.46438023,2866.4,2865.6,0.02463661]
[1765992937031,0.561,2866.6,2865.8,0.02463661]
[1765992937265,0.561,2866.6,2865.8,5.13833661]
[1765992937472,5.1417,2866.5,2865.7,0.561]
[1765992938961,0.561,2866.6,2865.8,3.48942703]
[1765992939366,0.46438023,2866.5,2865.7,9.16420952]
[1765992939868,0.46438023,2866.5,2865.7,5.6747]
[1765992940441,0.46438023,2866.5,2865.7,9.16422696]
[1765992940637,0.46438023,2866.6,2865.8,0.91888636]
[1765992940846,2.3175,2866.5,2865.7,0.561]
[1765992941050,5.2363,2866.5,2865.7,0.561]
[1765992941251,5.2363,2866.5,2865.7,4.05052742]
[1765992941447,5.2363,2866.5,2865.7,0.561]
[1765992941652,5.2363,2866.5,2865.7,1.49636642]
[1765992942372,5.2363,2866.5,2865.7,4.98588889]
[1765992942666,5.2363,2866.5,2865.7,1.49636642]
[1765992943269,0.561,2866.4,2865.1,0.46438023]
[1765992943467,2.9188,2866.1,2865.2,3.49009409]
[1765992943666,5.2363,2866.0,2865.2,3.49009409]
[1765992943854,2.9188,2865.9,2865.1,2.82488023]
[1765992944062,2.9188,2865.8,2864.8,0.002]
[1765992944368,2.9188,2865.4,2864.8,0.002]
[1765992944571,5.2363,2865.9,2864.9,0.02463661]
[1765992944758,0.561,2866.2,2865.3,5.2784]
[1765992944940,5.2363,2866.1,2865.3,5.2784]
[1765992945341,0.561,2866.2,2865.3,2.3605]
[1765992945564,2.9188,2866.1,2865.1,0.561]
[1765992945761,5.2363,2865.9,2864.9,5.30303661]
[1765992945944,5.2363,2865.9,2865.0,2.9215]
[1765992946142,5.2363,2865.9,2865.0,5.8394]
[1765992946555,5.2363,2865.9,2865.0,9.32978145]
[1765992946753,5.2363,2865.9,2865.1,8.79320094]
[1765992947072,0.46438023,2866.1,2865.2,5.2784]
[1765992947262,0.561,2866.1,2865.2,5.2784]
[1765992947467,2.8785,2866.1,2865.2,5.2784]
[1765992947668,2.9188,2866.0,2865.2,5.2784]
[1765992948272,5.2363,2866.0,2865.2,5.2784]
[1765992948643,5.81603,2866.0,2865.2,2.3605]
[1765992950292,5.2363,2867.1,2865.7,2.9179]
[1765992950456,2.3175,2866.8,2865.8,2.9215]
[1765992950773,2.9198,2867.2,2866.4,2.3605]
[1765992950976,5.2363,2867.1,2866.3,0.561]
[1765992951157,5.789339,2867.1,2866.3,0.561]
[1765992951475,0.001,2867.2,2866.5,2.3605]
[1765992951677,0.001,2867.2,2866.3,7.56325449]
[1765992951678,0.001,2867.2,2866.8,2.9179]
[1765992951864,0.001,2867.2,2866.5,0.561]
[1765992952468,0.001,2867.2,2866.5,2.9215]
[1765992952776,0.001,2867.2,2866.5,5.8394]
[1765992953577,2.9198,2867.2,2866.5,2.9215]
[1765992954177,5.2363,2866.9,2866.1,1.02538023]
[1765992954357,2.9188,2866.9,2866.1,1.02538023]
[1765992954559,0.561,2867.0,2866.1,1.02538023]
[1765992954560,2.9188,2866.8,2866.1,1.02538023]
[1765992954856,2.9188,2866.8,2865.7,0.02463661]
[1765992954857,5.2363,2866.2,2865.4,2.9179]
[1765992955062,5.2363,2866.2,2865.4,6.4078039]
[1765992955256,0.34908,2867.2,2865.7,2.3605]
[1765992955257,5.2363,2866.6,2865.7,2.3605]
[1765992955478,0.561,2866.5,2865.7,5.2784]
[1765992955649,5.2363,2866.4,2865.6,0.561]
[1765992955850,2.9188,2866.4,2865.6,9.32906614]
[1765992956045,2.9188,2866.4,2865.7,0.02463661]
[1765992956280,0.561,2866.5,2865.7,0.96248128]
[1765992956589,3.4798,2866.5,2865.7,0.02463661]
[1765992956758,2.3175,2866.2,2865.5,0.02463661]
[1765992956954,5.2363,2866.2,2865.5,0.02463661]
[1765992957148,5.2363,2866.2,2865.5,0.48901684]
[1765992957373,5.2363,2866.2,2865.5,0.02463661]
[1765992957680,5.2363,2866.2,2865.4,0.561]
[1765992957880,5.2363,2866.2,2865.4,6.41135607]
[1765992958093,0.561,2866.5,2865.5,8.79278461]
[1765992958263,0.561,2866.5,2865.6,2.3605]
[1765992958449,0.561,2866.5,2865.6,5.2784]
[1765992958653,3.4798,2866.5,2865.6,5.2784]
[1765992959454,3.4798,2866.5,2865.9,5.2784]
[1765992959455,0.561,2866.5,2865.9,5.2784]
[1765992959670,0.46438023,2866.8,2866.1,2.3605]
[1765992960074,0.561,2867.0,2866.1,2.3605]
[1765992960075,0.561,2867.0,2866.2,0.0348894]
[1765992960280,0.001,2867.2,2866.4,2.3605]
[1765992960471,0.001,2867.2,2866.4,2.9179]
[1765992960762,0.001,2867.2,2866.5,2.3605]
[1765992961164,5.2363,2867.1,2866.3,0.02463661]
[1765992962162,0.001,2867.2,2866.4,5.2784]
[1765992962370,0.001,2867.2,2866.5,5.2784]
[1765992962886,0.001,2867.4,2867.0,5.2784]
[1765992963587,0.001,2868.4,2867.2,2.9179]
[1765992963794,0.64756802,2869.4,2867.5,2.82488023]
[1765992963968,5.2373,2868.9,2867.8,5.2784]
[1765992964170,0.46438023,2868.8,2867.9,2.3605]
[1765992964378,0.46438023,2868.8,2868.0,0.561]
[1765992965085,0.001,2868.9,2868.0,3.4789]
[1765992965257,0.001,2868.9,2868.1,2.94253661]
[1765992965457,0.001,2868.9,2868.3,2.3605]
[1765992965683,0.001,2868.9,2868.2,2.9179]
[1765992965889,0.001,2868.9,2868.5,2.3605]
[1765992966186,0.001,2869.5,2868.7,0.405504]
[1765992966387,5.2363,2869.4,2868.7,0.561]
[1765992966857,0.28895,2869.5,2868.3,5.84684127]
[1765992966858,2.9188,2869.3,2868.6,0.561]
[1765992967186,2.9188,2869.3,2867.9,0.02463661]
[1765992967187,2.9188,2868.8,2867.4,5.30303661]
[1765992967374,0.46438023,2869.0,2867.4,5.30303661]
[1765992967375,0.46438023,2869.0,2868.1,2.38513661]
[1765992967683,0.46438023,2869.0,2868.3,2.3605]
[1765992967887,0.46438023,2869.4,2868.4,2.9179]
[1765992968067,0.46438023,2869.4,2868.5,5.2784]
[1765992968654,5.2363,2869.4,2868.0,2.38513661]
[1765992968886,2.8342,2868.9,2868.1,0.56]
[1765992969060,0.001,2868.8,2868.1,0.56]
[1765992970390,0.001,2868.8,2867.9,2.9179]
[1765992970556,0.001,2868.8,2867.9,0.56]
[1765992970756,5.0749,2868.7,2867.9,0.56]
[1765992970995,2.7013,2868.7,2867.6,2.3578]
[1765992971204,0.83023,2868.6,2867.4,0.56]
[1765992971374,0.56,2868.6,2867.4,0.56]
[1765992971687,5.0749,2868.3,2867.4,0.56]
[1765992971890,5.0749,2868.3,2867.4,2.7157]
[1765992972069,5.0749,2868.3,2867.5,0.46438023]
[1765992972660,2.7013,2868.2,2867.4,2.7157]
[1765992973667,5.6349,2868.6,2867.5,2.1557]
[1765992973890,5.6349,2868.6,2867.5,4.8873]
[1765992974370,5.6349,2868.6,2867.6,2.1557]
[1765992974894,5.0749,2868.5,2867.5,0.56]
[1765992975191,5.63839,2868.4,2867.6,2.1557]
[1765992975358,5.63839,2868.4,2867.5,5.4473]
[1765992975563,5.63839,2868.4,2867.6,2.1557]
[1765992978096,3.26479,2868.4,2867.6,4.8873]
[1765992978400,1.02438023,2868.6,2867.7,2.1557]
[1765992978578,1.02438023,2868.6,2867.7,2.7316]
[1765992978785,1.02438023,2868.6,2867.7,4.8873]
[1765992978981,2.3736,2868.5,2867.7,2.1557]
[1765992979179,5.0749,2868.4,2867.8,0.56]
[1765992979381,2.7013,2868.3,2867.8,0.56]
[1765992979576,2.3736,2868.3,2867.8,0.56]
[1765992979776,0.56349,2868.4,2867.8,0.56]
[1765992979777,5.0749,2868.2,2867.8,0.56]
[1765992979993,0.56,2868.6,2867.8,0.56]
[1765992980194,5.0749,2868.5,2867.5,4.8893]
[1765992980366,2.3736,2868.5,2867.6,0.56]
[1765992980705,5.0749,2868.4,2867.6,2.7157]
[1765992981508,0.56349,2868.4,2867.6,2.7157]
[1765992981715,1.02438023,2868.6,2867.5,0.002]
[1765992981877,0.56,2868.6,2867.5,0.002]
[1765992982468,2.7013,2868.5,2867.5,0.002]
[1765992982709,0.56,2868.6,2867.5,0.002]
[1765992982879,2.3736,2868.5,2867.7,2.1557]
[1765992983069,0.56,2868.6,2867.5,0.002]
[1765992983070,2.7013,2868.3,2867.5,0.002]
[1765992983275,2.7013,2868.3,2867.5,0.562]
[1765992983595,2.7013,2868.3,2867.5,2.7177]
[1765992984102,2.7013,2868.3,2867.5,6.20504866]
[1765992984269,2.7013,2868.3,2867.5,8.93664866]
[1765992984682,2.7013,2868.3,2867.8,0.002]
[1765992984883,3.238126,2868.3,2867.8,0.002]
[1765992985399,2.6e-05,2868.3,2867.8,0.002]
[1765992985591,0.001,2868.8,2868.0,4.8873]
[1765992985896,0.001,2868.8,2868.0,8.3739914]
[1765992986510,0.001,2868.8,2868.1,4.8873]
[1765992986681,2.3746,2868.8,2868.0,0.405504]
[1765992986878,0.001,2868.8,2868.2,0.46438023]
[1765992987108,0.001,2868.8,2868.4,4.8873]
[1765992987311,0.001,2868.8,2868.3,0.53516802]
[1765992987519,0.001,2868.8,2868.1,0.46438023]
[1765992987891,5.0759,2868.8,2868.0,4.8873]
[1765992988096,5.0749,2868.7,2868.1,0.56]
[1765992989429,2.3736,2868.7,2867.8,2.18233661]
[1765992989581,0.56,2868.7,2867.8,0.002]
[1765992989785,2.3736,2868.1,2867.8,0.002]
[1765992990106,2.3736,2868.1,2867.5,0.002]
[1765992991188,2.7013,2868.2,2867.5,2.1577]
[1765992991919,2.7013,2868.2,2867.5,5.6450509]
[1765992992423,2.3736,2868.3,2867.5,11.86400922]
[1765992992608,2.7013,2868.5,2867.6,6.17860261]
[1765992993008,5.0749,2868.5,2867.6,6.17860261]
[1765992993429,5.0749,2868.5,2867.6,6.20323922]
[1765992993720,5.0749,2868.5,2867.7,2.7316]
[1765992993903,0.46538023,2868.8,2868.0,4.8873]
[1765992994106,0.46538023,2868.8,2868.1,5.72471443]
[1765992994494,5.54028023,2868.8,2868.1,0.83741443]
[1765992994810,5.54028023,2868.8,2868.1,2.99311443]
[1765992995821,0.46438023,2868.7,2867.4,2.64471684]
[1765992996118,5.0749,2868.7,2867.5,5.4493]
[1765992996286,0.46538023,2868.8,2867.6,4.8873]
[1765992996489,0.001,2868.8,2867.6,4.8873]
[1765992996689,5.0749,2868.7,2867.7,0.54493]
[1765992996921,5.0749,2868.7,2867.7,5.43223]
[1765992997222,2.3736,2868.7,2867.7,5.43223]
[1765992997400,5.0749,2868.7,2867.9,4.8873]
[1765992997598,5.0749,2868.7,2867.9,5.430523]
[1765992998524,0.001,2868.8,2868.0,4.8873]
[1765992999744,0.46438023,2868.7,2868.0,4.8873]
[1765992999911,0.001,2868.8,2867.9,0.543223]
[1765993000107,0.001,2868.8,2867.8,0.002]
[1765993000695,0.46538023,2868.8,2867.8,0.002]
[1765993000899,4.9524,2868.7,2867.8,0.002]
[1765993001493,0.56,2868.6,2867.9,5.1717]
[1765993001698,0.001,2868.8,2868.0,5.1717]
[1765993002028,0.561,2868.8,2868.0,5.1717]
[1765993002226,0.46438023,2868.7,2868.0,5.1717]
[1765993002539,1.15887802,2868.8,2867.8,0.002]
[1765993002698,2.6599,2868.6,2867.8,0.002]
[1765993003023,4.9524,2868.6,2867.9,0.405504]
[1765993003223,0.46438023,2868.7,2867.9,5.577204]
[1765993003432,0.46538023,2868.8,2868.1,5.1717]
[1765993004226,0.001,2868.8,2868.3,2.9026]
[1765993004397,0.46438023,2868.7,2868.1,2.2691]
[1765993004603,0.001,2868.8,2868.1,5.1717]
[1765993005494,0.001,2868.9,2868.6,2.2691]
[1765993005698,5.5124,2869.4,2868.7,0.2674604]
[1765993005960,4.9524,2869.3,2868.4,0.56]
[1765993006094,4.9524,2869.1,2868.4,0.56]
[1765993006729,2.2925,2868.9,2868.4,0.56]
[1765993006930,2.2925,2868.7,2868.0,0.90661781]
[1765993007131,4.9524,2868.6,2868.0,0.965504]
[1765993007306,0.001,2868.8,2868.1,2.9026]
[1765993007508,0.001,2868.8,2868.2,5.1717]
[1765993007829,0.001,2868.8,2868.4,5.1717]
[1765993008338,4.9534,2869.5,2868.6,0.405504]
[1765993008540,0.001,2869.5,2868.5,0.43014061]
[1765993008744,0.001,2870.1,2869.1,5.1717]
[1765993008745,4.9524,2869.9,2869.1,5.1717]
[1765993009031,0.561,2870.1,2869.2,0.405504]
[1765993009220,0.561,2870.1,2869.5,5.1717]
[1765993009401,1.02538023,2870.1,2869.4,0.405504]
[1765993009743,0.001,2870.1,2868.5,0.02463661]
[1765993009900,4.9524,2869.7,2868.8,0.405504]
[1765993010229,0.56,2869.6,2868.7,0.405504]
[1765993010436,0.56,2869.6,2868.8,2.2691]
[1765993012638,0.46438023,2868.9,2867.8,0.002]
[1765993012814,0.46438023,2868.7,2867.5,0.002]
[1765993013020,0.46438023,2868.6,2867.5,0.002]
[1765993013339,2.6599,2868.4,2867.8,0.002]
[1765993013508,0.46438023,2868.1,2867.8,0.002]
[1765993014637,4.9524,2868.1,2867.8,0.002]
[1765993014813,0.59767802,2868.1,2867.5,0.002]
[1765993015006,4.9524,2867.9,2867.5,0.002]
[1765993016607,2.6599,2867.9,2867.5,0.002]
[1765993017528,4.9524,2867.9,2867.5,0.002]
[1765993017727,2.2925,2867.9,2867.2,0.405504]
[1765993018036,0.56,2867.9,2866.9,2.73348023]
[1765993018240,4.9524,2867.8,2866.9,3.6483814]
[1765993018618,2.75688023,2867.7,2866.6,0.002]
[1765993018818,2.2925,2867.5,2866.6,0.002]
[1765993019018,0.46438023,2867.8,2866.6,0.002]
[1765993019019,4.9524,2867.3,2866.6,0.002]
[1765993020234,0.56,2867.4,2866.7,0.405504]
[1765993020626,0.56,2867.4,2866.8,2.674604]
[1765993020828,0.56,2867.4,2866.8,6.1756748]
[1765993021213,0.56,2867.4,2866.6,0.407504]
[1765993021412,0.56,2867.4,2866.8,0.405504]
[1765993021914,0.56,2867.8,2866.9,2.9026]
[1765993022141,0.56,2867.8,2866.6,3.49042158]
[1765993022142,0.46438023,2867.7,2866.6,0.002]
[1765993022343,0.46438023,2867.7,2866.3,0.002]
[1765993022344,3.12428023,2867.6,2866.3,0.002]
[1765993022532,0.46438023,2867.3,2866.3,0.002]
[1765993022726,2.2925,2867.1,2866.3,0.002]
[1765993022948,2.6599,2866.9,2866.3,0.002]
[1765993023134,0.46438023,2867.3,2865.5,0.002]